[Event "November 21 Late 2023"]
[Site "https://www.chess.com"]
[Date "2023.11.21"]
[Round "6"]
[White "Jarocka, Liwia"]
[Black "BM223344"]
[Result "1/2-1/2"]
[Board "103"]
[TimeControl "180+1"]
[WhiteFideId "21807558"]
[WhiteElo "2001"]
[BlackElo "2481"]
[WhiteTeam "POL"]
[WhiteClock "0:00:27"]
[BlackClock "0:00:23"]

1. e4 {[%clk 0:03:00]}  e6 {[%clk 0:02:54]} 2. d4 {[%clk 0:03:00]}  d5 {[%clk 0:02:54]} 3. Bd3 {[%clk 0:02:55]}  Nf6 {[%clk 0:02:53]} 4. e5 {[%clk 0:02:55]}  Nfd7 {[%clk 0:02:54]} 5. c3 {[%clk 0:02:54]}  c5 {[%clk 0:02:54]} 6. Nf3 {[%clk 0:02:52]}  Nc6 {[%clk 0:02:55]} 7. O-O {[%clk 0:02:51]}  Be7 {[%clk 0:02:56]} 8. Re1 {[%clk 0:02:49]}  O-O {[%clk 0:02:56]} 9. Nbd2 {[%clk 0:02:47]}  a6 {[%clk 0:02:56]} 10. Nf1 {[%clk 0:02:47]}  b5 {[%clk 0:02:57]} 11. Ng3 {[%clk 0:02:44]}  cxd4 {[%clk 0:02:53]} 12. cxd4 {[%clk 0:02:43]}  f5 {[%clk 0:02:53]} 13. exf6 {[%clk 0:02:39]}  Nxf6 {[%clk 0:02:54]} 14. Bg5 {[%clk 0:02:34]}  Bd7 {[%clk 0:02:53]} 15. a3 {[%clk 0:02:32]}  Rc8 {[%clk 0:02:52]} 16. Rc1 {[%clk 0:02:32]}  Qe8 {[%clk 0:02:29]} 17. Bb1 {[%clk 0:02:28]}  Qf7 {[%clk 0:02:29]} 18. Qd3 {[%clk 0:02:24]}  g6 {[%clk 0:02:29]} 19. Bd2 {[%clk 0:02:18]}  Bd6 {[%clk 0:02:17]} 20. Bc3 {[%clk 0:02:07]}  Ng4 {[%clk 0:02:08]} 21. Qe2 {[%clk 0:01:58]}  Rce8 {[%clk 0:02:00]} 22. h3 {[%clk 0:01:55]}  Nf6 {[%clk 0:01:45]} 23. Bd2 {[%clk 0:01:46]}  Bxg3 {[%clk 0:01:38]} 24. fxg3 {[%clk 0:01:42]}  Nh5 {[%clk 0:01:39]} 25. Bh6 {[%clk 0:01:29]}  Ng7 {[%clk 0:01:25]} 26. Rf1 {[%clk 0:01:24]}  Qe7 {[%clk 0:01:24]} 27. Rce1 {[%clk 0:01:18]}  Qd6 {[%clk 0:01:18]} 28. Qd2 {[%clk 0:01:11]}  Qxg3 {[%clk 0:01:14]} 29. Re2 {[%clk 0:00:52]}  Qd6 {[%clk 0:01:00]} 30. Rfe1 {[%clk 0:00:51]}  Rf7 {[%clk 0:00:55]} 31. Ne5 {[%clk 0:00:45]}  Nxe5 {[%clk 0:00:51]} 32. dxe5 {[%clk 0:00:46]}  Qc5+ {[%clk 0:00:49]} 33. Be3 {[%clk 0:00:46]}  Qe7 {[%clk 0:00:49]} 34. b4 {[%clk 0:00:43]}  Nf5 {[%clk 0:00:49]} 35. Bc5 {[%clk 0:00:43]}  Qh4 {[%clk 0:00:48]} 36. Bxf5 {[%clk 0:00:43]}  gxf5 {[%clk 0:00:47]} 37. Qd4 {[%clk 0:00:43]}  Qxd4+ {[%clk 0:00:42]} 38. Bxd4 {[%clk 0:00:42]}  Rc8 {[%clk 0:00:43]} 39. Bc5 {[%clk 0:00:42]}  Rg7 {[%clk 0:00:43]} 40. Rf2 {[%clk 0:00:40]}  Be8 {[%clk 0:00:42]} 41. Rd1 {[%clk 0:00:40]}  Rg3 {[%clk 0:00:39]} 42. Rf3 {[%clk 0:00:35]}  Rxf3 {[%clk 0:00:26]} 43. gxf3 {[%clk 0:00:36]}  Bh5 {[%clk 0:00:26]} 44. Kf2 {[%clk 0:00:35]}  Kf7 {[%clk 0:00:25]} 45. Rc1 {[%clk 0:00:32]}  f4 {[%clk 0:00:20]} 46. Rc3 {[%clk 0:00:27]}  Kg6 {[%clk 0:00:20]} 47. Bd4 {[%clk 0:00:25]}  Rxc3 {[%clk 0:00:21]} 48. Bxc3 {[%clk 0:00:25]}  Kf5 {[%clk 0:00:21]} 49. Bd4 {[%clk 0:00:25]}  Be8 {[%clk 0:00:22]} 50. Kg2 {[%clk 0:00:22]}  h5 {[%clk 0:00:22]} 51. h4 {[%clk 0:00:20]}  Bc6 {[%clk 0:00:21]} 52. Kf2 {[%clk 0:00:20]}  Kg6 {[%clk 0:00:20]} 53. Ke2 {[%clk 0:00:20]}  Kf5 {[%clk 0:00:20]} 54. Kf2 {[%clk 0:00:21]}  Be8 {[%clk 0:00:21]} 55. Ke2 {[%clk 0:00:21]}  Bg6 {[%clk 0:00:21]} 56. Kf2 {[%clk 0:00:22]}  Bh7 {[%clk 0:00:22]} 57. Ke2 {[%clk 0:00:22]}  Kg6 {[%clk 0:00:22]} 58. Kf2 {[%clk 0:00:23]}  Kf7 {[%clk 0:00:23]} 59. Ke2 {[%clk 0:00:23]}  Bf5 {[%clk 0:00:23]} 60. Kf2 {[%clk 0:00:23]}  Kg6 {[%clk 0:00:24]} 61. Bc5 {[%clk 0:00:23]}  Bc2 {[%clk 0:00:24]} 62. Bd4 {[%clk 0:00:24]}  Kf5 {[%clk 0:00:25]} 63. Ke2 {[%clk 0:00:25]}  Be4 {[%clk 0:00:25]} 64. Kf2 {[%clk 0:00:25]}  Bd3 {[%clk 0:00:25]} 65. Kg2 {[%clk 0:00:24]}  Be4 {[%clk 0:00:23]} 66. Kf2 {[%clk 0:00:25]}  Bc2 {[%clk 0:00:23]} 67. Kg2 {[%clk 0:00:25]}  Bd1 {[%clk 0:00:24]} 68. Kf2 {[%clk 0:00:25]}  Bb3 {[%clk 0:00:24]} 69. Kg2 {[%clk 0:00:25]}  Bc4 {[%clk 0:00:25]} 70. Kf2 {[%clk 0:00:26]}  Bd3 {[%clk 0:00:25]} 71. Kg2 {[%clk 0:00:26]}  Be4 {[%clk 0:00:23]} 72. Kf2 {[%clk 0:00:27]} 1/2-1/2

[Event "November 21 Late 2023"]
[Site "https://www.chess.com"]
[Date "2023.11.21"]
[Round "6"]
[White "OKEKE, Isaac Chukwudalu"]
[Black "Shton, Roman"]
[Result "1-0"]
[Board "107"]
[TimeControl "180+1"]
[WhiteFideId "8508526"]
[BlackFideId "14137461"]
[WhiteElo "2161"]
[BlackElo "2027"]
[WhiteTeam "NGR"]
[BlackTeam "UKR"]
[WhiteClock "0:01:42"]
[BlackClock "0:01:09"]

1. e4 {[%clk 0:02:59]}  Nf6 {[%clk 0:03:00]} 2. e5 {[%clk 0:02:55]}  Nd5 {[%clk 0:03:00]} 3. d4 {[%clk 0:02:55]}  d6 {[%clk 0:03:00]} 4. c4 {[%clk 0:02:55]}  Nb6 {[%clk 0:03:01]} 5. f4 {[%clk 0:02:56]}  g6 {[%clk 0:03:01]} 6. Nc3 {[%clk 0:02:55]}  Bg7 {[%clk 0:03:01]} 7. Be2 {[%clk 0:02:54]}  O-O {[%clk 0:02:42]} 8. Be3 {[%clk 0:02:52]}  Be6 {[%clk 0:02:40]} 9. b3 {[%clk 0:02:37]}  c5 {[%clk 0:02:35]} 10. dxc5 {[%clk 0:02:27]}  N6d7 {[%clk 0:02:29]} 11. cxd6 {[%clk 0:02:24]}  Qa5 {[%clk 0:02:17]} 12. dxe7 {[%clk 0:02:15]}  Qxc3+ {[%clk 0:01:38]} 13. Bd2 {[%clk 0:02:14]}  Qd4 {[%clk 0:01:38]} 14. Nf3 {[%clk 0:02:06]}  Qe4 {[%clk 0:01:29]} 15. exf8=Q+ {[%clk 0:02:06]}  Bxf8 {[%clk 0:01:30]} 16. O-O {[%clk 0:02:02]}  Bc5+ {[%clk 0:01:30]} 17. Kh1 {[%clk 0:02:02]}  Nc6 {[%clk 0:01:31]} 18. Ng5 {[%clk 0:01:56]}  Qf5 {[%clk 0:01:09]} 19. g4 {[%clk 0:01:42]} 1-0

[Event "November 21 Late 2023"]
[Site "https://www.chess.com"]
[Date "2023.11.21"]
[Round "6"]
[White "Liu, Leonardo"]
[Black "Joie, Sebastien"]
[Result "1-0"]
[Board "109"]
[TimeControl "180+1"]
[WhiteFideId "30965780"]
[BlackFideId "650420"]
[WhiteElo "2276"]
[BlackElo "2396"]
[WhiteTeam "USA"]
[BlackTeam "FRA"]
[WhiteClock "0:01:02"]
[BlackClock "0:00:04"]

1. e4 {[%clk 0:03:00]}  c5 {[%clk 0:02:43]} 2. Nc3 {[%clk 0:03:00]}  Nc6 {[%clk 0:02:43]} 3. g3 {[%clk 0:03:01]}  g6 {[%clk 0:02:39]} 4. Bg2 {[%clk 0:03:00]}  Bg7 {[%clk 0:02:39]} 5. d3 {[%clk 0:03:01]}  e6 {[%clk 0:02:38]} 6. Be3 {[%clk 0:03:02]}  b6 {[%clk 0:02:37]} 7. Qd2 {[%clk 0:03:02]}  Nge7 {[%clk 0:02:37]} 8. Bh6 {[%clk 0:03:02]}  Bf6 {[%clk 0:02:37]} 9. h4 {[%clk 0:02:59]}  d5 {[%clk 0:02:36]} 10. exd5 {[%clk 0:02:46]}  exd5 {[%clk 0:02:37]} 11. O-O-O {[%clk 0:02:46]}  Be6 {[%clk 0:02:12]} 12. Kb1 {[%clk 0:02:35]}  Nf5 {[%clk 0:02:09]} 13. Bf4 {[%clk 0:02:12]}  O-O {[%clk 0:02:00]} 14. Nf3 {[%clk 0:02:06]}  Nd6 {[%clk 0:01:24]} 15. Ng5 {[%clk 0:02:03]}  Bxg5 {[%clk 0:01:14]} 16. Bxg5 {[%clk 0:02:01]}  f6 {[%clk 0:01:06]} 17. Bh6 {[%clk 0:02:00]}  Rf7 {[%clk 0:01:06]} 18. Nxd5 {[%clk 0:01:59]}  Rc8 {[%clk 0:00:56]} 19. Rde1 {[%clk 0:01:44]}  Qd7 {[%clk 0:00:33]} 20. Nf4 {[%clk 0:01:19]}  Bxa2+ {[%clk 0:00:18]} 21. Kxa2 {[%clk 0:01:17]}  Nb4+ {[%clk 0:00:18]} 22. Kb1 {[%clk 0:01:11]}  Nc4 {[%clk 0:00:16]} 23. Qc3 {[%clk 0:01:04]}  Qa4 {[%clk 0:00:12]} 24. Qxc4 {[%clk 0:01:02]}  b5 {[%clk 0:00:04]} 25. Qb3 {[%clk 0:01:02]} 1-0

[Event "November 21 Late 2023"]
[Site "https://www.chess.com"]
[Date "2023.11.21"]
[Round "6"]
[White "Curtis, John"]
[Black "Weisz, Bryan"]
[Result "0-1"]
[Board "110"]
[TimeControl "180+1"]
[WhiteFideId "3200256"]
[BlackFideId "30934133"]
[WhiteElo "2203"]
[BlackElo "2447"]
[WhiteTeam "AUS"]
[BlackTeam "USA"]
[WhiteClock "0:00:14"]
[BlackClock "0:00:18"]

1. e4 {[%clk 0:03:00]}  e5 {[%clk 0:02:24]} 2. Nf3 {[%clk 0:02:59]}  Ke7 {[%clk 0:02:25]} 3. Nc3 {[%clk 0:02:58]}  f6 {[%clk 0:02:18]} 4. d4 {[%clk 0:02:57]}  d6 {[%clk 0:02:11]} 5. dxe5 {[%clk 0:02:52]}  dxe5 {[%clk 0:02:08]} 6. Qxd8+ {[%clk 0:02:51]}  Kxd8 {[%clk 0:02:06]} 7. Be3 {[%clk 0:02:50]}  c6 {[%clk 0:02:04]} 8. Bc4 {[%clk 0:02:48]}  b5 {[%clk 0:02:00]} 9. O-O-O+ {[%clk 0:02:48]}  Kc7 {[%clk 0:02:01]} 10. Bxg8 {[%clk 0:02:48]}  Rxg8 {[%clk 0:02:00]} 11. Nd2 {[%clk 0:02:47]}  Be6 {[%clk 0:01:54]} 12. a3 {[%clk 0:02:46]}  a5 {[%clk 0:01:54]} 13. f4 {[%clk 0:02:43]}  b4 {[%clk 0:01:52]} 14. Ncb1 {[%clk 0:02:43]}  Nd7 {[%clk 0:01:44]} 15. f5 {[%clk 0:02:28]}  Bf7 {[%clk 0:01:44]} 16. a4 {[%clk 0:02:29]}  Bc5 {[%clk 0:01:43]} 17. Bxc5 {[%clk 0:02:26]}  Nxc5 {[%clk 0:01:44]} 18. b3 {[%clk 0:02:27]}  Rgd8 {[%clk 0:01:40]} 19. Rde1 {[%clk 0:02:23]}  Rd4 {[%clk 0:01:36]} 20. Re3 {[%clk 0:02:23]}  Rad8 {[%clk 0:01:36]} 21. Rhe1 {[%clk 0:02:23]}  h5 {[%clk 0:01:22]} 22. Rg3 {[%clk 0:02:19]}  Rg8 {[%clk 0:01:13]} 23. Rge3 {[%clk 0:02:18]}  g6 {[%clk 0:01:13]} 24. Nf3 {[%clk 0:02:11]}  gxf5 {[%clk 0:01:07]} 25. Nxd4 {[%clk 0:02:06]}  exd4 {[%clk 0:01:08]} 26. Rg3 {[%clk 0:02:05]}  Rxg3 {[%clk 0:01:03]} 27. hxg3 {[%clk 0:02:05]}  fxe4 {[%clk 0:01:04]} 28. Rf1 {[%clk 0:02:05]}  e3 {[%clk 0:00:53]} 29. Rxf6 {[%clk 0:01:56]}  Bd5 {[%clk 0:00:54]} 30. Kd1 {[%clk 0:01:47]}  Ne4 {[%clk 0:00:50]} 31. Rg6 {[%clk 0:01:39]}  Nf2+ {[%clk 0:00:28]} 32. Ke2 {[%clk 0:01:31]}  Be4 {[%clk 0:00:29]} 33. Rg5 {[%clk 0:01:18]}  Bxc2 {[%clk 0:00:29]} 34. Nd2 {[%clk 0:01:15]}  exd2 {[%clk 0:00:26]} 35. Rg7+ {[%clk 0:01:15]}  Kb6 {[%clk 0:00:25]} 36. Kxd2 {[%clk 0:01:15]}  Bxb3 {[%clk 0:00:25]} 37. Rh7 {[%clk 0:01:07]}  Ne4+ {[%clk 0:00:26]} 38. Kd3 {[%clk 0:01:06]}  Nxg3 {[%clk 0:00:25]} 39. Kxd4 {[%clk 0:01:05]}  h4 {[%clk 0:00:24]} 40. Rh8 {[%clk 0:01:01]}  c5+ {[%clk 0:00:24]} 41. Ke5 {[%clk 0:01:00]}  c4 {[%clk 0:00:23]} 42. Kd4 {[%clk 0:00:56]}  c3 {[%clk 0:00:23]} 43. Rh7 {[%clk 0:00:56]}  c2 {[%clk 0:00:22]} 44. Rh6+ {[%clk 0:00:55]}  Kc7 {[%clk 0:00:21]} 45. Rxh4 {[%clk 0:00:43]}  c1=Q {[%clk 0:00:20]} 46. Rh3 {[%clk 0:00:37]}  Ne2+ {[%clk 0:00:18]} 47. Ke4 {[%clk 0:00:34]}  Qc4+ {[%clk 0:00:17]} 48. Ke3 {[%clk 0:00:34]}  Nc3 {[%clk 0:00:13]} 49. Rh7+ {[%clk 0:00:32]}  Kd6 {[%clk 0:00:14]} 50. Rh6+ {[%clk 0:00:32]}  Ke7 {[%clk 0:00:15]} 51. Rh3 {[%clk 0:00:28]}  Qe4+ {[%clk 0:00:15]} 52. Kf2 {[%clk 0:00:27]}  Nd1+ {[%clk 0:00:15]} 53. Kg3 {[%clk 0:00:27]}  Ne3 {[%clk 0:00:16]} 54. Rh5 {[%clk 0:00:20]}  Qxg2+ {[%clk 0:00:15]} 55. Kf4 {[%clk 0:00:21]}  Nd5+ {[%clk 0:00:15]} 56. Rxd5 {[%clk 0:00:16]}  Qxd5 {[%clk 0:00:16]} 57. Ke3 {[%clk 0:00:16]}  Bxa4 {[%clk 0:00:16]} 58. Kf4 {[%clk 0:00:16]}  b3 {[%clk 0:00:17]} 59. Ke3 {[%clk 0:00:16]}  b2 {[%clk 0:00:17]} 60. Kf4 {[%clk 0:00:16]}  b1=Q {[%clk 0:00:17]} 61. Kg3 {[%clk 0:00:15]}  Bb5 {[%clk 0:00:17]} 62. Kf4 {[%clk 0:00:15]}  a4 {[%clk 0:00:18]} 63. Ke3 {[%clk 0:00:15]}  a3 {[%clk 0:00:18]} 64. Kf4 {[%clk 0:00:16]}  a2 {[%clk 0:00:19]} 65. Kg3 {[%clk 0:00:14]}  a1=Q {[%clk 0:00:18]} 0-1

[Event "November 21 Late 2023"]
[Site "https://www.chess.com"]
[Date "2023.11.21"]
[Round "6"]
[White "seasidesunset"]
[Black "Jimenez Ruano, Adrian"]
[Result "0-1"]
[Board "111"]
[TimeControl "180+1"]
[BlackFideId "22276050"]
[WhiteElo "2194"]
[BlackElo "2215"]
[BlackTeam "ESP"]
[WhiteClock "0:00:00"]
[BlackClock "0:00:33"]

1. e4 {[%clk 0:02:57]}  c5 {[%clk 0:02:59]} 2. c4 {[%clk 0:02:56]}  Nc6 {[%clk 0:02:58]} 3. Nc3 {[%clk 0:02:57]}  g6 {[%clk 0:02:59]} 4. g3 {[%clk 0:02:58]}  Bg7 {[%clk 0:02:59]} 5. Bg2 {[%clk 0:02:59]}  d6 {[%clk 0:03:00]} 6. d3 {[%clk 0:03:00]}  e6 {[%clk 0:03:00]} 7. Nge2 {[%clk 0:03:00]}  Nge7 {[%clk 0:03:01]} 8. O-O {[%clk 0:03:01]}  O-O {[%clk 0:03:01]} 9. f4 {[%clk 0:03:02]}  Nd4 {[%clk 0:03:01]} 10. h3 {[%clk 0:03:02]}  Nec6 {[%clk 0:03:02]} 11. Be3 {[%clk 0:03:02]}  Rb8 {[%clk 0:03:02]} 12. a4 {[%clk 0:02:53]}  b6 {[%clk 0:02:58]} 13. g4 {[%clk 0:02:51]}  Kh8 {[%clk 0:02:53]} 14. Ng3 {[%clk 0:02:38]}  Bd7 {[%clk 0:02:31]} 15. f5 {[%clk 0:02:22]}  Be5 {[%clk 0:02:31]} 16. Bf4 {[%clk 0:01:27]}  Bxf4 {[%clk 0:02:22]} 17. Rxf4 {[%clk 0:01:28]}  Qg5 {[%clk 0:02:22]} 18. Rf1 {[%clk 0:01:22]}  Ne5 {[%clk 0:02:07]} 19. Kh2 {[%clk 0:00:52]}  Qe3 {[%clk 0:01:57]} 20. Nb5 {[%clk 0:00:28]}  Qxd3 {[%clk 0:01:26]} 21. Nxd6 {[%clk 0:00:20]}  Qxd1 {[%clk 0:01:08]} 22. Rfxd1 {[%clk 0:00:16]}  Bc6 {[%clk 0:01:05]} 23. f6 {[%clk 0:00:09]}  a6 {[%clk 0:01:04]} 24. Ndf5 {[%clk 0:00:02]}  exf5 {[%clk 0:01:03]} 25. gxf5 {[%clk 0:00:03]}  gxf5 {[%clk 0:01:00]} 26. Rxd4 {[%clk 0:00:02]}  cxd4 {[%clk 0:01:00]} 27. Nxf5 {[%clk 0:00:03]}  Rg8 {[%clk 0:00:55]} 28. Nxd4 {[%clk 0:00:02]}  Rbd8 {[%clk 0:00:50]} 29. Nxc6 {[%clk 0:00:02]}  Nxc6 {[%clk 0:00:39]} 30. Rg1 {[%clk 0:00:02]}  Rd2 {[%clk 0:00:38]} 31. h4 {[%clk 0:00:02]}  Ne5 {[%clk 0:00:38]} 32. Kh3 {[%clk 0:00:02]}  Nd3 {[%clk 0:00:34]} 33. e5 {[%clk 0:00:02]}  Nf4+ {[%clk 0:00:34]} 34. Kh2 {[%clk 0:00:02]}  Rdxg2+ {[%clk 0:00:32]} 35. Rxg2 {[%clk 0:00:01]}  Rxg2+ {[%clk 0:00:33]} 36. Kh1 {[%clk 0:00:02]}  Rxb2 {[%clk 0:00:33]} 37. e6 {[%clk 0:00:00]}  Nxe6 {[%clk 0:00:33]} 0-1

[Event "November 21 Late 2023"]
[Site "https://www.chess.com"]
[Date "2023.11.21"]
[Round "6"]
[White "Jimenez Fernandez, Rebeca"]
[Black "Gutkin, Ilya"]
[Result "0-1"]
[Board "120"]
[TimeControl "180+1"]
[WhiteFideId "32070934"]
[BlackFideId "16203470"]
[WhiteElo "2015"]
[BlackElo "2248"]
[WhiteTeam "ESP"]
[BlackTeam "GER"]
[WhiteClock "0:00:05"]
[BlackClock "0:00:23"]

1. e4 {[%clk 0:03:00]}  e5 {[%clk 0:03:00]} 2. d4 {[%clk 0:03:00]}  exd4 {[%clk 0:03:00]} 3. Qxd4 {[%clk 0:03:00]}  Nc6 {[%clk 0:03:00]} 4. Qe3 {[%clk 0:03:01]}  Nf6 {[%clk 0:03:00]} 5. Nc3 {[%clk 0:03:02]}  Bb4 {[%clk 0:03:00]} 6. Bd2 {[%clk 0:03:02]}  O-O {[%clk 0:03:01]} 7. O-O-O {[%clk 0:03:03]}  d5 {[%clk 0:02:54]} 8. Nxd5 {[%clk 0:02:55]}  Nxd5 {[%clk 0:02:54]} 9. exd5 {[%clk 0:02:56]}  Bxd2+ {[%clk 0:02:53]} 10. Qxd2 {[%clk 0:02:51]}  Ne5 {[%clk 0:02:51]} 11. f4 {[%clk 0:02:49]}  Ng6 {[%clk 0:02:49]} 12. h3 {[%clk 0:02:42]}  Qf6 {[%clk 0:02:48]} 13. Ne2 {[%clk 0:02:34]}  Rd8 {[%clk 0:02:47]} 14. g4 {[%clk 0:02:32]}  c6 {[%clk 0:02:43]} 15. Bg2 {[%clk 0:02:30]}  cxd5 {[%clk 0:02:40]} 16. f5 {[%clk 0:02:18]}  Ne7 {[%clk 0:02:30]} 17. Nd4 {[%clk 0:02:17]}  Nc6 {[%clk 0:02:16]} 18. g5 {[%clk 0:02:12]}  Qxd4 {[%clk 0:02:13]} 19. Qxd4 {[%clk 0:02:07]}  Nxd4 {[%clk 0:02:14]} 20. Rxd4 {[%clk 0:02:07]}  Bxf5 {[%clk 0:02:13]} 21. Rxd5 {[%clk 0:01:59]}  Rxd5 {[%clk 0:02:06]} 22. Bxd5 {[%clk 0:02:00]}  Rc8 {[%clk 0:02:05]} 23. c3 {[%clk 0:01:57]}  Rc7 {[%clk 0:02:02]} 24. Rf1 {[%clk 0:01:48]}  Bxh3 {[%clk 0:01:59]} 25. Re1 {[%clk 0:01:43]}  Kf8 {[%clk 0:01:58]} 26. Rh1 {[%clk 0:01:39]}  Bf5 {[%clk 0:01:57]} 27. Rf1 {[%clk 0:01:40]}  Bg6 {[%clk 0:01:53]} 28. Bb3 {[%clk 0:01:37]}  Rc5 {[%clk 0:01:45]} 29. Rg1 {[%clk 0:01:36]}  h5 {[%clk 0:01:41]} 30. gxh6 {[%clk 0:01:36]}  gxh6 {[%clk 0:01:41]} 31. Kd2 {[%clk 0:01:35]}  h5 {[%clk 0:01:41]} 32. Ke3 {[%clk 0:01:34]}  h4 {[%clk 0:01:41]} 33. Kd4 {[%clk 0:01:32]}  Rh5 {[%clk 0:01:37]} 34. Bd5 {[%clk 0:01:29]}  h3 {[%clk 0:01:36]} 35. Bxb7 {[%clk 0:01:28]}  Rb5 {[%clk 0:01:29]} 36. Bc8 {[%clk 0:01:20]}  h2 {[%clk 0:01:26]} 37. Rh1 {[%clk 0:01:17]}  Rxb2 {[%clk 0:01:25]} 38. a4 {[%clk 0:01:15]}  Bh5 {[%clk 0:01:18]} 39. Ke3 {[%clk 0:00:53]}  Ke7 {[%clk 0:00:57]} 40. Bf5 {[%clk 0:00:48]}  Kd6 {[%clk 0:00:53]} 41. Be4 {[%clk 0:00:46]}  Bg6 {[%clk 0:00:48]} 42. Bf3 {[%clk 0:00:12]}  Kc5 {[%clk 0:00:47]} 43. Be2 {[%clk 0:00:12]}  Bf5 {[%clk 0:00:36]} 44. Rxh2 {[%clk 0:00:12]}  Bg4 {[%clk 0:00:36]} 45. Rf2 {[%clk 0:00:06]}  Rxe2+ {[%clk 0:00:36]} 46. Rxe2 {[%clk 0:00:06]}  Bxe2 {[%clk 0:00:36]} 47. Kxe2 {[%clk 0:00:07]}  Kc4 {[%clk 0:00:37]} 48. Kd2 {[%clk 0:00:07]}  a5 {[%clk 0:00:36]} 49. Kc2 {[%clk 0:00:07]}  f5 {[%clk 0:00:36]} 50. Kd2 {[%clk 0:00:07]}  Kb3 {[%clk 0:00:36]} 51. Kd3 {[%clk 0:00:07]}  Kxa4 {[%clk 0:00:35]} 52. c4 {[%clk 0:00:07]}  f4 {[%clk 0:00:36]} 53. c5 {[%clk 0:00:05]}  Kb5 {[%clk 0:00:35]} 54. Kd4 {[%clk 0:00:05]}  Kc6 {[%clk 0:00:27]} 55. Ke4 {[%clk 0:00:04]}  a4 {[%clk 0:00:22]} 56. Kxf4 {[%clk 0:00:04]}  a3 {[%clk 0:00:23]} 57. Ke3 {[%clk 0:00:04]}  a2 {[%clk 0:00:23]} 58. Kd2 {[%clk 0:00:05]}  a1=Q {[%clk 0:00:24]} 59. Kc2 {[%clk 0:00:05]}  Qa3 {[%clk 0:00:23]} 0-1

[Event "November 21 Late 2023"]
[Site "https://www.chess.com"]
[Date "2023.11.21"]
[Round "6"]
[White "TheAlienParty"]
[Black "Castillo Pena, Patricia Evarista"]
[Result "1-0"]
[Board "123"]
[TimeControl "180+1"]
[BlackFideId "6412106"]
[WhiteElo "2377"]
[BlackElo "1861"]
[BlackTeam "DOM"]
[WhiteClock "0:01:48"]
[BlackClock "0:01:00"]

1. c4 {[%clk 0:02:58]}  e6 {[%clk 0:02:58]} 2. g3 {[%clk 0:02:57]}  d5 {[%clk 0:02:58]} 3. Bg2 {[%clk 0:02:57]}  c6 {[%clk 0:02:58]} 4. Nf3 {[%clk 0:02:48]}  Nf6 {[%clk 0:02:58]} 5. b3 {[%clk 0:02:45]}  Be7 {[%clk 0:02:56]} 6. Bb2 {[%clk 0:02:43]}  O-O {[%clk 0:02:56]} 7. O-O {[%clk 0:02:43]}  Nbd7 {[%clk 0:02:55]} 8. d4 {[%clk 0:02:42]}  Ne4 {[%clk 0:02:52]} 9. Nfd2 {[%clk 0:02:38]}  f5 {[%clk 0:02:51]} 10. f3 {[%clk 0:02:37]}  Ng5 {[%clk 0:02:43]} 11. Nc3 {[%clk 0:02:35]}  f4 {[%clk 0:02:35]} 12. gxf4 {[%clk 0:02:33]}  Rxf4 {[%clk 0:02:30]} 13. Qe1 {[%clk 0:02:32]}  Rf6 {[%clk 0:02:18]} 14. e4 {[%clk 0:02:30]}  Rg6 {[%clk 0:02:13]} 15. Kh1 {[%clk 0:02:29]}  dxc4 {[%clk 0:02:01]} 16. Nxc4 {[%clk 0:02:27]}  Bb4 {[%clk 0:01:46]} 17. a3 {[%clk 0:02:24]}  Ba5 {[%clk 0:01:43]} 18. b4 {[%clk 0:02:22]}  Bb6 {[%clk 0:01:42]} 19. Rd1 {[%clk 0:02:18]}  Qe7 {[%clk 0:01:35]} 20. Nxb6 {[%clk 0:02:17]}  axb6 {[%clk 0:01:28]} 21. d5 {[%clk 0:02:09]}  exd5 {[%clk 0:01:26]} 22. exd5 {[%clk 0:02:09]}  Qxe1 {[%clk 0:01:20]} 23. Rfxe1 {[%clk 0:02:08]}  Nf6 {[%clk 0:01:20]} 24. f4 {[%clk 0:01:57]}  Nf7 {[%clk 0:01:13]} 25. dxc6 {[%clk 0:01:55]}  bxc6 {[%clk 0:01:11]} 26. Bxc6 {[%clk 0:01:54]}  Rb8 {[%clk 0:01:06]} 27. Nd5 {[%clk 0:01:49]}  Nxd5 {[%clk 0:01:00]} 28. Re8# {[%clk 0:01:48]} 1-0

[Event "November 21 Late 2023"]
[Site "https://www.chess.com"]
[Date "2023.11.21"]
[Round "6"]
[White "Schmakel, Sam"]
[Black "Vila Dupla, Aurelio"]
[Result "1-0"]
[Board "124"]
[TimeControl "180+1"]
[WhiteFideId "2039311"]
[BlackFideId "2203383"]
[WhiteElo "2356"]
[BlackElo "2009"]
[WhiteTeam "USA"]
[BlackTeam "ESP"]
[WhiteClock "0:01:31"]
[BlackClock "0:00:43"]

1. d4 {[%clk 0:03:00]}  Nf6 {[%clk 0:02:59]} 2. Nf3 {[%clk 0:02:59]}  g6 {[%clk 0:02:59]} 3. Nc3 {[%clk 0:02:58]}  d5 {[%clk 0:02:58]} 4. Bf4 {[%clk 0:02:59]}  Bg7 {[%clk 0:02:59]} 5. Qd2 {[%clk 0:02:59]}  O-O {[%clk 0:02:58]} 6. Bh6 {[%clk 0:02:57]}  c5 {[%clk 0:02:58]} 7. dxc5 {[%clk 0:02:48]}  Ne4 {[%clk 0:02:08]} 8. Nxe4 {[%clk 0:02:43]}  dxe4 {[%clk 0:02:08]} 9. Bxg7 {[%clk 0:02:38]}  Kxg7 {[%clk 0:02:03]} 10. Nd4 {[%clk 0:02:13]}  Na6 {[%clk 0:01:52]} 11. e3 {[%clk 0:02:08]}  Qc7 {[%clk 0:01:40]} 12. Bxa6 {[%clk 0:01:46]}  bxa6 {[%clk 0:01:38]} 13. Qc3 {[%clk 0:01:46]}  e5 {[%clk 0:01:36]} 14. Nb3 {[%clk 0:01:46]}  Be6 {[%clk 0:01:35]} 15. Na5 {[%clk 0:01:44]}  Kg8 {[%clk 0:01:18]} 16. O-O {[%clk 0:01:43]}  f5 {[%clk 0:01:18]} 17. Rfd1 {[%clk 0:01:42]}  f4 {[%clk 0:01:18]} 18. Rd6 {[%clk 0:01:41]}  Rae8 {[%clk 0:00:56]} 19. Qxe5 {[%clk 0:01:31]}  Bxa2 {[%clk 0:00:49]} 20. Rxg6+ {[%clk 0:01:31]}  hxg6 {[%clk 0:00:43]} 21. Qxc7 {[%clk 0:01:31]} 1-0

[Event "November 21 Late 2023"]
[Site "https://www.chess.com"]
[Date "2023.11.21"]
[Round "6"]
[White "ExchangeAB"]
[Black "Bazzano, Sebastian"]
[Result "1-0"]
[Board "127"]
[TimeControl "180+1"]
[BlackFideId "104566"]
[WhiteElo "2477"]
[BlackElo "2278"]
[BlackTeam "ARG"]
[WhiteClock "0:00:50"]
[BlackClock "0:01:00"]

1. Nf3 {[%clk 0:03:00]}  Nf6 {[%clk 0:02:59]} 2. b3 {[%clk 0:03:00]}  d5 {[%clk 0:02:59]} 3. Bb2 {[%clk 0:03:01]}  c5 {[%clk 0:02:59]} 4. e3 {[%clk 0:03:01]}  Nc6 {[%clk 0:03:00]} 5. Bb5 {[%clk 0:03:01]}  e6 {[%clk 0:02:58]} 6. O-O {[%clk 0:03:00]}  Bd6 {[%clk 0:02:58]} 7. Ne5 {[%clk 0:02:59]}  Qc7 {[%clk 0:02:56]} 8. f4 {[%clk 0:02:57]}  O-O {[%clk 0:02:55]} 9. Bxc6 {[%clk 0:02:55]}  bxc6 {[%clk 0:02:56]} 10. d3 {[%clk 0:02:55]}  Nd7 {[%clk 0:02:55]} 11. Nxd7 {[%clk 0:02:45]}  Bxd7 {[%clk 0:02:56]} 12. Qh5 {[%clk 0:02:27]}  f6 {[%clk 0:02:33]} 13. Nd2 {[%clk 0:02:23]}  e5 {[%clk 0:02:22]} 14. fxe5 {[%clk 0:02:21]}  fxe5 {[%clk 0:02:22]} 15. e4 {[%clk 0:02:16]}  Be8 {[%clk 0:02:05]} 16. Rxf8+ {[%clk 0:02:08]}  Bxf8 {[%clk 0:02:05]} 17. Qxe5 {[%clk 0:01:53]}  Qxe5 {[%clk 0:01:56]} 18. Bxe5 {[%clk 0:01:53]}  a5 {[%clk 0:01:54]} 19. a4 {[%clk 0:01:25]}  Bg6 {[%clk 0:01:41]} 20. Bc3 {[%clk 0:01:22]}  Kf7 {[%clk 0:01:37]} 21. Rf1+ {[%clk 0:01:21]}  Ke6 {[%clk 0:01:37]} 22. Re1 {[%clk 0:01:16]}  Kd7 {[%clk 0:01:32]} 23. h3 {[%clk 0:01:13]}  d4 {[%clk 0:01:14]} 24. Bb2 {[%clk 0:01:12]}  Re8 {[%clk 0:01:13]} 25. Nc4 {[%clk 0:01:10]}  Bd6 {[%clk 0:01:14]} 26. Nxa5 {[%clk 0:01:06]}  Bg3 {[%clk 0:01:14]} 27. Rf1 {[%clk 0:01:04]}  Bh5 {[%clk 0:01:12]} 28. Bc1 {[%clk 0:00:58]}  Re7 {[%clk 0:01:08]} 29. Bf4 {[%clk 0:00:53]}  Bh4 {[%clk 0:01:08]} 30. g4 {[%clk 0:00:51]}  Bg6 {[%clk 0:01:00]} 31. Nc4 {[%clk 0:00:50]} 1-0